bitfinex-derivatives/quotes_BNBF0:USTF0_20250116
["timestamp","ask_amount","ask_price","bid_price","bid_amount"]
[1737033162730,1.04213719,711.48,709.35,0.25877525]
[1737033162925,1.04213719,711.48,709.36,0.25877525]
[1737033163125,1.25056463,712.02,709.37,0.25877525]
[1737033163126,1.04213719,711.66,709.37,0.25877525]
[1737033163322,1.04213719,711.66,709.38,0.25877525]
[1737033163526,1.04213719,711.66,709.33,0.713]
[1737033163930,1.04213719,711.6,709.33,0.713]
[1737033164729,1.04213719,711.6,709.34,0.25882622]
[1737033165129,2.12769676,712.76,709.34,0.25882622]
[1737033165130,1.04213719,711.59,709.34,0.25882622]
[1737033165330,1.04213719,711.59,709.33,0.713]
[1737033166029,1.04213719,711.59,709.34,0.25885743]
[1737033166229,1.04213719,711.32,709.34,0.25885743]
[1737033167226,1.04213719,711.32,709.33,0.713]
[1737033167429,1.04213719,711.17,709.33,0.713]
[1737033168532,1.04213719,711.37,709.34,0.25885479]
[1737033169035,1.04213719,711.37,709.33,0.713]
[1737033169430,1.04213719,711.37,709.34,0.25882644]
[1737033169833,1.04213719,711.41,709.34,0.25882644]
[1737033170529,1.04213719,711.41,709.35,0.25882644]
[1737033170735,2.12769676,712.49,709.34,0.60294151]
[1737033170736,1.04213719,711.18,709.36,0.25882644]
[1737033170935,0.28123066,711.16,709.37,0.25881288]
[1737033171232,0.28123066,711.16,709.38,0.25881288]
[1737033171436,0.28123066,711.16,709.39,0.25881288]
[1737033171739,1.04213719,711.07,709.4,0.25881288]
[1737033171938,1.04213719,711.07,709.41,0.25881288]
[1737033172237,1.04213719,711.07,709.42,0.25881288]
[1737033172433,0.28123066,711.16,709.33,0.713]
[1737033172434,1.04213719,711.05,709.43,0.25881288]
[1737033172638,1.04213719,711.05,709.44,0.25881288]
[1737033172832,1.04213719,711.05,709.45,0.25881288]
[1737033173032,1.04213719,711.05,709.46,0.25881288]
[1737033173234,1.04213719,711.05,709.35,0.25881288]
[1737033173434,1.04213719,711.05,709.33,0.713]
[1737033173435,1.04213719,711.05,709.36,0.25881288]
[1737033173632,1.04213719,711.05,709.37,0.25882756]
[1737033174035,1.04213719,711.05,709.38,0.25882756]
[1737033174235,1.04213719,711.05,709.33,0.713]
[1737033174437,1.04213719,711.05,709.34,0.25882318]
[1737033174637,0.28123066,711.16,709.34,0.25882318]
[1737033175840,1.04213719,711.13,709.34,0.25882318]
[1737033176536,1.04213719,711.13,709.35,0.25885793]
[1737033176737,1.04213719,711.13,709.36,0.25885793]
[1737033177039,1.04213719,711.13,709.33,0.713]
[1737033177040,1.04213719,711.04,709.37,0.25885793]
[1737033177243,1.04213719,711.04,709.38,0.25885793]
[1737033177439,1.04213719,711.04,709.39,0.25885793]
[1737033177638,1.04213719,711.04,709.4,0.25885793]
[1737033177839,1.04213719,711.04,709.41,0.25885793]
[1737033178042,1.04213719,711.04,709.42,0.25885793]
[1737033178340,1.04213719,711.04,709.33,0.713]
[1737033179043,1.04213719,711.08,709.33,0.713]
[1737033179346,1.04213719,711.08,709.34,0.25885797]
[1737033179842,1.04213719,711.08,709.33,0.713]
[1737033180243,1.04213719,711.02,709.33,0.713]
[1737033181038,1.04213719,710.92,709.33,0.713]
[1737033183344,1.04213719,710.89,709.33,0.713]
[1737033184242,1.04213719,710.88,709.33,0.713]
[1737033184445,1.04213719,710.88,709.34,0.25889525]
[1737033184841,1.04213719,710.88,709.35,0.25889525]
[1737033185145,1.04213719,710.88,709.36,0.25889525]
[1737033185346,1.04213719,710.59,709.28,0.28197608]
[1737033185746,1.04213719,710.59,709.28,1.41797608]
[1737033186547,1.04213719,710.81,709.28,1.41797608]
[1737033187743,1.04213719,710.88,709.28,1.41797608]
[1737033188349,0.28134935,710.86,709.28,1.41797608]
[1737033188847,0.28134935,710.86,709.29,0.25893728]
[1737033189249,0.28134935,710.86,709.28,1.41797608]
[1737033189450,0.28134935,710.86,709.29,0.25893832]
[1737033189852,0.28134935,710.86,709.28,1.41797608]
[1737033190047,1.04213719,710.52,709.28,1.41797608]
[1737033190246,1.04213719,710.52,709.28,1.136]
[1737033191149,0.72253805,710.85,709.28,1.136]
[1737033191150,1.04213719,710.55,709.28,1.136]
[1737033192242,1.04213719,710.54,709.28,1.136]
[1737033193350,1.04213719,710.7,709.28,1.136]
[1737033194542,1.04213719,710.74,709.28,1.136]
[1737033195750,0.28134935,710.86,709.28,1.136]
[1737033195751,1.04213719,710.72,709.28,1.136]
[1737033197059,1.04213719,710.4,709.28,1.136]
[1737033197958,1.04213719,710.48,709.28,1.136]
[1737033198758,1.04213719,710.48,709.29,0.25895774]
[1737033199056,2.12769676,711.13,709.28,1.136]
[1737033199057,1.04213719,710.67,709.28,1.136]
[1737033200660,1.04213719,710.71,709.28,1.136]
[1737033201764,1.04213719,711.14,709.28,1.136]
[1737033201765,1.04213719,710.95,709.28,1.136]
[1737033203663,1.04213719,710.95,709.29,0.25893464]
[1737033204060,1.04213719,710.76,709.29,0.25893464]
[1737033204459,1.04213719,710.76,709.28,1.136]
[1737033204661,1.04213719,710.76,709.29,0.25884054]
[1737033205066,1.04213719,710.94,709.29,0.25884054]
[1737033205466,1.04213719,710.94,709.3,0.28196813]
[1737033205657,1.04213719,710.94,709.31,0.25884054]
[1737033205863,1.04213719,710.94,709.32,0.25884054]
[1737033206063,1.04213719,711.04,709.33,0.25884054]
[1737033206265,1.04213719,711.04,709.34,0.25884054]
[1737033206461,1.04213719,711.04,709.34,0.25876901]
[1737033206662,1.04213719,711.04,709.35,0.25876901]
[1737033206870,1.04213719,711.03,709.39,1.03940812]
[1737033207167,1.04213719,711.03,709.4,0.25876901]
[1737033207964,1.04213719,711.17,709.4,0.25876901]
[1737033208164,1.04213719,711.17,709.41,0.25876901]
[1737033208466,1.04213719,711.17,709.42,0.25876901]
[1737033208667,1.04213719,711.17,709.43,0.25876901]
[1737033208868,1.04213719,711.17,709.44,0.25876901]
[1737033209066,1.04213719,711.21,709.45,0.25876901]
[1737033209259,1.04213719,711.21,709.46,0.25876901]
[1737033209463,1.04213719,711.21,709.47,0.25876901]
[1737033209661,1.04213719,711.21,709.47,0.25878708]
[1737033209860,1.04213719,711.21,709.48,0.25878708]
[1737033210063,1.04213719,711.21,709.49,0.25878708]
[1737033210260,1.04213719,711.21,709.5,0.25878708]
[1737033210467,2.12769676,711.9,709.51,0.25878708]
[1737033210468,1.04213719,711.17,709.51,0.25878708]
[1737033210767,1.04213719,711.17,709.52,0.25878708]
[1737033211068,1.04213719,711.17,709.53,0.25878708]
[1737033211267,1.04213719,711.17,709.31,0.25878708]
[1737033211466,1.04213719,711.17,709.32,0.25878708]
[1737033211671,1.04213719,711.17,709.33,0.25878708]
[1737033211869,2.12769676,711.9,709.3,0.28196813]
[1737033211870,1.04213719,711.18,709.34,0.25878708]
[1737033212167,1.04213719,711.18,709.35,0.25878708]
[1737033212368,1.04213719,711.18,709.36,0.25878708]
[1737033212567,1.04213719,711.18,709.37,0.25887341]
[1737033212761,1.04213719,711.18,709.38,0.25887341]
[1737033212968,1.04213719,711.18,709.39,0.25887341]
[1737033213275,1.04213719,710.95,709.4,0.25887341]
[1737033213669,1.04213719,710.95,709.3,0.28196813]
[1737033214171,1.04213719,710.95,709.31,0.2589254]
[1737033214371,1.04213719,710.79,709.3,0.28196813]
[1737033215767,1.04213719,710.69,709.3,0.28196813]
[1737033215969,1.04213719,710.69,709.3,1.41296813]
[1737033216867,1.04213719,710.59,709.3,1.41296813]
[1737033217469,1.04213719,710.59,709.3,1.131]
[1737033217672,1.04213719,710.8,709.3,1.131]
[1737033218679,1.04213719,710.79,709.3,1.131]
[1737033219578,1.04213719,710.81,709.3,1.131]
[1737033220678,1.04213719,710.77,709.3,1.131]
[1737033221678,1.04213719,710.71,709.3,1.131]
[1737033222082,1.47093011,710.7,709.3,1.131]
[1737033222882,1.04213719,710.59,709.3,1.131]
[1737033223982,1.04213719,710.54,709.3,1.131]
[1737033224779,1.04213719,710.53,709.3,1.131]
[1737033225887,1.04213719,710.51,709.3,1.131]
[1737033226886,1.04213719,710.56,709.3,1.131]
[1737033228382,2.5130673,710.7,709.3,1.131]
[1737033229182,1.47093011,710.7,709.3,1.131]
[1737033240092,2.5130673,710.7,709.3,1.131]
[1737033242497,1.47093011,710.7,709.3,1.131]
[1737033243300,1.04213719,710.69,709.3,1.131]
[1737033244391,1.04213719,710.53,709.3,1.131]
[1737033245492,1.04213719,710.6,709.3,1.131]
[1737033246296,1.04213719,710.51,709.3,1.131]
[1737033247092,1.04213719,710.44,709.3,1.131]
[1737033248300,1.04213719,710.38,709.3,1.131]
[1737033249000,1.04213719,710.31,709.3,1.131]
[1737033249200,0.28157116,710.3,709.3,1.131]
[1737033253411,1.04213719,710.16,709.3,1.131]
[1737033254504,0.28157116,710.3,709.3,1.131]
[1737033254505,1.04213719,710.1,709.3,1.131]
[1737033255501,1.04213719,710.13,709.3,1.131]
[1737033256408,1.04213719,710.18,709.3,1.131]
[1737033257305,1.04213719,710.23,709.3,1.131]
[1737033258708,1.04213719,710.24,709.3,1.131]
[1737033259712,1.04213719,710.22,709.3,1.131]
[1737033260912,0.28157116,710.3,709.3,1.131]
[1737033261809,1.04213719,710.27,709.3,1.131]
[1737033264015,0.28157116,710.3,709.3,1.131]
[1737033265113,0.28157116,710.3,709.31,0.25892078]
[1737033265612,0.28157116,710.3,709.1,1.03940812]
[1737033265815,0.28157116,710.3,709.11,0.25889005]
[1737033266215,0.28157116,710.3,709.1,1.03940812]
[1737033266513,0.28157116,710.3,709.22,1.03940812]
[1737033266914,0.28157116,710.3,709.23,0.25888809]
[1737033267417,0.28157116,710.3,709.26,1.03940812]
[1737033267618,0.28157116,710.3,709.27,0.25888809]
[1737033268416,0.28157116,710.3,709.1,1.106]
[1737033268417,0.28157116,710.3,709.24,1.03940812]
[1737033268612,0.28157116,710.3,709.25,0.25889969]
[1737033269713,0.28157116,710.3,709.26,0.25885741]
[1737033269920,1.04213719,710.52,709.27,0.25885741]
[1737033270214,1.04213719,710.52,709.28,0.25884948]
[1737033270419,1.04213719,710.52,709.29,0.25884948]
[1737033270621,1.04213719,710.52,709.3,0.25884948]
[1737033270920,0.28148794,710.51,709.2,1.03940812]
[1737033271716,0.28148794,710.51,709.1,1.106]
[1737033272020,0.28148794,710.51,709.11,0.25891374]
[1737033272216,0.28148794,710.51,709.12,0.28203971]
[1737033272411,0.28148794,710.51,709.13,0.25891374]
[1737033273920,0.28148794,710.51,709.12,0.28203971]
[1737033274114,0.28148794,710.51,709.13,0.25887937]
[1737033274719,0.28148794,710.51,709.14,0.2588831]
[1737033274916,0.28148794,710.51,709.15,0.2588831]
[1737033275120,0.28148794,710.51,709.16,0.2588831]
[1737033275420,0.28148794,710.51,709.17,0.2588831]
[1737033275623,0.28148794,710.51,709.18,0.2588831]
[1737033275921,0.28148794,710.51,709.19,0.2588831]
[1737033276124,0.28148794,710.51,709.2,0.2588831]
[1737033276321,0.28148794,710.51,709.21,0.2588831]
[1737033276618,0.28148794,710.51,709.15,1.03940812]
[1737033276922,0.28148794,710.51,709.16,0.25885331]
[1737033277216,0.28148794,710.51,709.17,0.25885331]
[1737033277420,0.28148794,710.51,709.18,0.25885331]
[1737033277623,0.28148794,710.51,709.19,0.25885331]
[1737033277822,0.28148794,710.51,709.2,0.25885331]
[1737033278024,0.28148794,710.51,709.21,0.25885331]
[1737033278221,0.28148794,710.51,709.22,0.25885331]
[1737033278421,0.28148794,710.51,709.23,0.25885331]
[1737033278621,0.28148794,710.51,709.24,0.25885331]
[1737033278824,0.28148794,710.51,709.25,0.25885331]
[1737033279023,0.28148794,710.51,709.26,0.25885331]
[1737033279224,0.28148794,710.51,709.27,0.25885331]
[1737033279418,0.28148794,710.51,709.28,0.2588187]
[1737033279621,0.28148794,710.51,709.29,0.2588187]
[1737033279823,0.28148794,710.51,709.3,0.2588187]
[1737033280023,0.28148794,710.51,709.31,0.2588187]
[1737033280321,0.28148794,710.51,709.32,0.2588187]
[1737033280517,0.28148794,710.51,709.33,0.2588187]
[1737033280719,0.28148794,710.51,709.15,1.03940812]
[1737033280720,0.28148794,710.51,709.34,0.2588187]
[1737033280919,0.28148794,710.51,709.35,0.2588187]
[1737033281125,0.28148794,710.51,709.36,0.2588187]
[1737033281320,0.28148794,710.51,709.37,0.2588187]
[1737033281520,0.28148794,710.51,709.38,0.2588187]
[1737033281823,0.28148794,710.51,709.39,0.2588187]
[1737033282021,0.28148794,710.51,709.19,1.03940812]
[1737033282222,0.28148794,710.51,709.2,0.86151956]
[1737033282427,0.28148794,710.51,709.21,0.25873512]
[1737033282620,1.04213719,711.22,709.22,0.25873512]
[1737033282820,0.28121484,711.2,709.23,0.25872222]
[1737033283026,0.28121484,711.2,709.24,0.25872222]
[1737033283324,0.28121484,711.2,709.25,0.25872222]
[1737033283521,0.28121484,711.2,709.26,0.25872222]
[1737033283724,0.28121484,711.2,709.31,1.03940812]
[1737033283926,0.28121484,711.2,709.32,0.86147957]
[1737033284120,0.28121484,711.2,709.33,0.25872222]
[1737033284429,0.28121484,711.2,709.34,0.25872222]
[1737033284627,0.28121484,711.2,709.35,0.25872222]
[1737033284829,0.28121484,711.2,709.36,0.25872222]
[1737033285127,0.28121484,711.2,709.37,0.25872222]
[1737033285324,0.28121484,711.2,709.34,0.60275735]
[1737033285325,0.28121484,711.2,709.38,0.25872222]
[1737033285520,0.28121484,711.2,709.39,0.25872222]
[1737033285723,0.28121484,711.2,709.4,0.25872222]
[1737033285927,0.28121484,711.2,709.41,0.25872222]
[1737033286122,0.28121484,711.2,709.42,0.25872222]
[1737033286327,0.28121484,711.2,709.43,0.25872222]
[1737033286530,0.28121484,711.2,709.44,0.25872222]
[1737033286729,0.28121484,711.2,709.39,0.60275735]
[1737033286730,0.28121484,711.2,709.45,0.25872222]
[1737033286925,0.28121484,711.2,709.46,0.25872222]
[1737033287123,0.28121484,711.2,709.47,0.25872222]
[1737033287327,0.28121484,711.2,709.48,0.25872222]
[1737033287525,0.28121484,711.2,709.49,0.25872222]
[1737033287725,0.28121484,711.2,709.5,0.25872222]
[1737033288527,0.28121484,711.2,709.5,0.86147957]
[1737033288726,0.28121484,711.2,709.49,0.82]
[1737033288727,0.28121484,711.2,709.51,0.86147957]
[1737033289030,0.28121484,711.2,709.52,0.25872222]
[1737033289227,0.28121484,711.2,709.53,0.25872222]
[1737033289425,0.28121484,711.2,709.54,0.25872222]
[1737033289632,0.28121484,711.2,709.55,0.25872222]
[1737033289834,0.28121484,711.2,709.56,0.25872222]
[1737033290032,0.28121484,711.2,709.57,0.25872222]
[1737033290331,0.28121484,711.2,709.49,0.82]
[1737033290332,0.28121484,711.2,709.58,0.25872222]
[1737033290531,0.28121484,711.2,709.59,0.25872222]
[1737033290730,0.28121484,711.2,709.6,0.25875616]
[1737033290927,0.28121484,711.2,709.61,0.25875616]
[1737033291135,0.28121484,711.2,709.62,0.25875616]
[1737033291432,0.28121484,711.2,709.49,0.82]
[1737033291433,0.28121484,711.2,709.63,0.25876282]
[1737033291632,0.28121484,711.2,709.64,0.25876282]
[1737033291831,0.28121484,711.2,709.49,0.82]
[1737033292032,0.28121484,711.2,709.5,0.25882921]
[1737033293636,0.28121484,711.2,709.49,0.82]
[1737033293637,1.04213719,711.16,709.51,0.2588511]
[1737033294033,1.04213719,711.16,709.5,0.2588511]
[1737033294235,1.04213719,711.16,709.51,0.2588511]
[1737033294534,1.04213719,711.16,709.52,0.2588511]
[1737033294737,1.04213719,711.18,709.53,0.2588511]
[1737033294933,1.04213719,711.18,709.49,0.82]
[1737033294934,1.04213719,711.18,709.5,0.2588511]
[1737033295131,1.04213719,711.18,709.51,0.2588511]
[1737033295430,1.04213719,711.18,709.52,0.2588511]
[1737033295635,1.04213719,711.18,709.53,0.2588511]
[1737033295836,1.04213719,711.12,709.54,0.25885091]
[1737033296031,1.04213719,711.12,709.55,0.25885091]
[1737033296337,1.04213719,711.12,709.56,0.51765154]
[1737033296536,1.04213719,711.12,709.57,0.25881474]
[1737033296932,1.04213719,711.15,709.57,0.25881474]
[1737033297536,1.04213719,711.15,709.58,0.25881474]
[1737033297734,1.04213719,711.15,709.59,0.25881474]
[1737033297939,1.04213719,711.16,709.6,0.25881474]
[1737033298235,1.04213719,711.16,709.61,0.25881474]
[1737033298434,1.04213719,711.16,709.62,0.25881474]
[1737033298635,1.04213719,711.16,709.63,0.25881474]
[1737033298843,1.04213719,711.16,709.49,0.82]
[1737033299143,1.04213719,711.16,709.5,0.25880236]
[1737033299536,1.04213719,711.16,709.49,0.82]
[1737033299739,1.04213719,711.16,709.5,0.25879141]
[1737033299939,1.04213719,711.07,709.5,0.25879141]
[1737033300739,1.04213719,711.06,709.5,0.25879141]
[1737033301038,1.04213719,711.06,709.49,0.82]
[1737033301235,1.04213719,711.06,709.5,0.25876606]
[1737033302042,1.04213719,711.06,709.51,0.25876606]
[1737033302242,0.28121484,711.2,709.52,0.25876606]
[1737033302644,0.28121484,711.2,709.53,0.25876606]
[1737033302941,0.28121484,711.2,709.54,0.25876606]
[1737033303143,1.04213719,711.04,709.54,0.25876606]
[1737033304044,1.04213719,711.04,709.53,0.75]
[1737033304442,1.04213719,710.87,709.53,0.75]
[1737033305544,1.04213719,710.8,709.53,0.75]
[1737033305739,1.04213719,710.8,709.54,0.25885442]
[1737033305942,1.04213719,710.8,709.53,0.75]
[1737033306845,1.04213719,710.97,709.53,0.75]
[1737033307648,0.28121484,711.2,709.53,0.75]
[1737033307649,1.04213719,710.94,709.53,0.75]
[1737033308539,0.28121484,711.2,709.53,0.75]
[1737033308540,1.04213719,710.91,709.53,0.75]
[1737033309545,1.04213719,710.78,709.53,0.75]
[1737033310646,0.72132919,711.19,709.53,0.75]
[1737033310647,1.04213719,710.66,709.54,0.25886566]
[1737033311744,1.04213719,710.89,709.53,0.75]
[1737033312149,1.04213719,710.89,709.54,0.25879315]
[1737033312746,1.04213719,710.89,709.55,0.25877557]
[1737033313048,1.04213719,711.03,709.56,0.25877557]
[1737033313249,1.04213719,711.03,709.54,0.25877557]
[1737033313448,1.04213719,711.03,709.57,0.25877557]
[1737033313749,1.04213719,711.03,709.58,0.25877557]
[1737033313948,1.04213719,711.0,709.54,0.25877557]
[1737033314140,1.04213719,711.0,709.55,0.25877557]
[1737033314342,1.04213719,711.0,709.56,0.25877557]
[1737033314543,1.04213719,711.0,709.57,0.25877557]
[1737033314850,1.04213719,711.0,709.58,0.25877557]
[1737033315145,1.04213719,710.9,709.53,0.75]
[1737033315345,1.04213719,710.9,709.54,0.25885595]
[1737033316446,1.04213719,710.8,709.54,0.25885595]
[1737033317145,1.04213719,710.8,709.53,0.75]
[1737033317350,1.04213719,710.77,709.53,0.75]
[1737033318249,1.04213719,710.85,709.53,0.75]
[1737033319352,1.04213719,710.85,709.54,0.25881113]
[1737033319751,1.04213719,710.85,709.53,0.75]
[1737033319952,1.04213719,710.91,709.54,0.25881433]
[1737033320852,1.04213719,710.99,709.54,0.25881433]
[1737033321446,1.04213719,710.99,709.53,0.75]
[1737033321646,1.04213719,710.99,709.54,0.25880198]
[1737033321854,1.04213719,710.99,709.53,0.75]
[1737033322748,1.04213719,711.02,709.53,0.75]
[1737033323949,1.04213719,710.93,709.53,0.75]
[1737033325353,1.04213719,710.98,709.53,0.75]
[1737033325753,1.04213719,710.98,709.54,0.25880805]
[1737033326449,1.04213719,710.98,709.55,0.25880805]
[1737033326655,1.04213719,710.83,709.56,0.25880805]
[1737033326856,1.04213719,710.83,709.57,0.25880805]
[1737033327158,1.04213719,710.83,709.58,0.25879449]
[1737033327453,1.04213719,710.8,709.58,0.25879449]
[1737033329057,0.28136518,710.82,709.58,0.25879449]
[1737033329857,0.28136518,710.82,709.57,1.064]
[1737033330154,0.28136518,710.82,709.58,0.25877351]
[1737033331461,0.28136518,710.82,709.59,1.29818163]
[1737033331754,0.28136518,710.82,709.6,0.8614799]
[1737033331957,0.28136518,710.82,709.61,0.25877351]
[1737033332258,0.28136518,710.82,709.62,0.25877351]
[1737033332459,0.28136518,710.82,709.75,1.03940812]
[1737033332658,0.28136518,710.82,709.76,0.25877351]
[1737033332859,0.28136518,710.82,709.76,0.25867722]
[1737033333461,0.28136518,710.82,709.75,1.03940812]
[1737033333664,0.28136518,710.82,709.76,0.25867212]
[1737033334056,0.28136518,710.82,709.77,0.25867212]
[1737033334260,0.28136518,710.82,709.72,0.25867212]
[1737033334456,0.28136518,710.82,709.72,0.86132803]
[1737033334965,0.28136518,710.82,709.73,0.86132803]
[1737033335157,0.28136518,710.82,709.74,0.86132803]
[1737033335361,1.04213719,711.28,709.75,0.25867212]
[1737033335561,0.28118717,711.27,709.68,1.03940812]
[1737033335864,0.28118717,711.27,709.69,0.25864873]
[1737033336056,0.28118717,711.27,709.7,0.25864873]
[1737033336260,0.28118717,711.27,709.71,0.25864873]
[1737033336464,0.28118717,711.27,709.72,0.25864873]
[1737033336765,0.28118717,711.27,709.73,0.25864873]
[1737033336963,0.28118717,711.27,709.74,0.25860104]
[1737033337163,0.28118717,711.27,709.75,0.25860104]
[1737033337358,0.28118717,711.27,709.76,0.25860104]
[1737033337558,0.28118717,711.27,709.77,0.25860104]
[1737033337763,0.28118717,711.27,709.78,0.25860104]
[1737033337957,0.28118717,711.27,709.79,0.25860104]
[1737033338162,0.28118717,711.27,709.63,1.03940812]
[1737033338163,0.28118717,711.27,709.8,0.25860104]
[1737033338356,0.28118717,711.27,709.57,1.064]
[1737033338357,0.28118717,711.27,709.81,0.25856449]
[1737033338557,0.28118717,711.27,709.82,0.25856449]
[1737033338761,0.28118717,711.27,709.83,0.25856449]
[1737033338957,0.28118717,711.27,709.84,0.25856449]
[1737033339161,0.28118717,711.27,709.71,0.25856449]
[1737033339364,0.28118717,711.27,709.72,0.25856449]
[1737033339564,0.28118717,711.27,709.71,0.25856449]
[1737033339764,0.28118717,711.27,709.72,0.25856449]
[1737033339958,0.28118717,711.27,709.73,0.25856449]
[1737033340163,0.28118717,711.27,709.74,0.25856449]
[1737033340361,0.28118717,711.27,709.75,0.25856449]
[1737033340568,0.28118717,711.27,709.76,0.25856449]
[1737033340860,0.28118717,711.27,709.77,0.25856449]
[1737033341066,0.28118717,711.27,709.78,0.25858393]
[1737033341263,0.28118717,711.27,709.79,0.25858393]
[1737033341463,0.28118717,711.27,709.8,0.25858393]
[1737033341666,0.28118717,711.27,709.81,0.25858393]
[1737033341964,0.28118717,711.27,709.82,0.25858393]
[1737033342261,0.28118717,711.27,709.83,0.25858393]
[1737033342460,0.28118717,711.27,709.58,0.25858393]
[1737033342660,0.28118717,711.27,709.59,0.25858393]
[1737033342864,0.28118717,711.27,709.6,0.25858393]
[1737033343059,0.28118717,711.27,709.61,0.25858393]
[1737033343258,0.28118717,711.27,709.62,0.25858393]
[1737033343459,0.28118717,711.27,709.63,0.25858393]
[1737033343666,0.28118717,711.27,709.64,0.25858393]
[1737033343865,0.28118717,711.27,709.57,1.064]
[1737033344068,0.28118717,711.27,709.58,0.86117611]
[1737033344266,0.28118717,711.27,709.59,0.258623]
[1737033344468,0.28118717,711.27,709.6,0.258623]
[1737033344767,0.28118717,711.27,709.61,0.258623]
[1737033344967,0.28118717,711.27,709.58,0.60255311]
[1737033344968,0.28118717,711.27,709.62,0.258623]
[1737033345163,0.28118717,711.27,709.63,0.258623]
[1737033345368,0.28118717,711.27,709.64,0.258623]
[1737033345669,0.28118717,711.27,709.65,0.258623]
[1737033345868,0.28118717,711.27,709.66,0.258623]
[1737033346067,0.28118717,711.27,709.67,0.258623]
[1737033346267,0.28118717,711.27,709.68,0.258623]
[1737033346468,0.28118717,711.27,709.69,0.258623]
[1737033346663,0.28118717,711.27,709.7,0.258623]
[1737033346869,0.28118717,711.27,709.56,1.03940812]
[1737033346870,0.28118717,711.27,709.71,0.25856321]
[1737033347072,0.28118717,711.27,709.72,0.25856321]
[1737033347272,0.28118717,711.27,709.73,0.25856321]
[1737033347472,0.28118717,711.27,709.74,0.25856321]
[1737033347667,0.28118717,711.27,709.75,0.25860079]
[1737033347873,0.28118717,711.27,709.76,0.25860079]
[1737033348073,0.28118717,711.27,709.77,0.25860079]
[1737033348275,0.28118717,711.27,709.78,0.25860079]
[1737033348474,0.28118717,711.27,709.79,0.25860079]
[1737033348675,0.28118717,711.27,709.8,0.25860079]
[1737033348867,0.28118717,711.27,709.74,0.25860079]
[1737033349071,0.28118717,711.27,709.75,0.25860079]
[1737033349270,0.28118717,711.27,709.76,0.25860079]
[1737033349574,0.28118717,711.27,709.77,0.25860079]
[1737033349774,0.28118717,711.27,709.78,0.25856713]
[1737033349974,0.28118717,711.27,709.79,0.25856713]
[1737033350168,0.28118717,711.27,709.8,0.25856713]
[1737033350373,0.28118717,711.27,709.72,0.829]
[1737033350569,0.28118717,711.27,709.73,4.01031228]
[1737033350769,0.28118717,711.27,709.74,0.86105453]
[1737033351075,0.28118717,711.27,709.75,0.25858315]
[1737033351374,0.28118717,711.27,709.76,0.25858315]
[1737033351575,0.28118717,711.27,709.77,0.25858315]
[1737033351777,0.28118717,711.27,709.78,0.25858315]
[1737033351976,0.28118717,711.27,709.72,0.829]
[1737033351977,0.28118717,711.27,709.79,0.25858315]
[1737033352170,0.28118717,711.27,709.8,0.25858315]
[1737033352372,0.28118717,711.27,709.81,0.25858315]
[1737033352571,0.28118717,711.27,709.82,0.25858578]
[1737033352780,0.28118717,711.27,709.83,0.25858578]
[1737033352972,0.28118717,711.27,709.84,0.25858578]
[1737033353180,0.28118717,711.27,709.85,0.25858578]
[1737033353369,0.28118717,711.27,709.86,0.25858578]
[1737033353574,0.28118717,711.27,709.87,0.25858578]
[1737033353769,0.28118717,711.27,709.88,0.25858578]
[1737033353975,0.28118717,711.27,709.89,0.25858578]
[1737033354172,0.28118717,711.27,709.72,0.829]
[1737033354370,0.28118717,711.27,709.73,0.86105695]
[1737033354577,0.28118717,711.27,709.74,0.25858388]
[1737033354779,0.28118717,711.27,709.75,0.25858388]
[1737033354981,0.28118717,711.27,709.76,0.25858388]
[1737033355277,0.28118717,711.27,709.77,0.25858388]
[1737033355577,0.28118717,711.27,709.78,0.25856059]
[1737033355778,0.28118717,711.27,709.73,3.14699226]
[1737033355779,0.28118717,711.27,709.79,0.25856059]
[1737033355972,0.28118717,711.27,709.8,0.25856059]
[1737033356172,0.28118717,711.27,709.81,0.25856059]
[1737033356376,0.28118717,711.27,709.82,0.25856059]
[1737033356578,0.28118717,711.27,709.83,0.25856059]
[1737033356880,0.28118717,711.27,709.84,0.25856059]
[1737033357073,0.28118717,711.27,709.85,0.25856059]
[1737033357377,0.28118717,711.27,709.86,0.25856059]
[1737033357571,0.28118717,711.27,709.81,0.60242538]
[1737033357572,0.28118717,711.27,709.87,0.25856059]
[1737033357771,0.28118717,711.27,709.88,0.25856059]
[1737033357975,0.28118717,711.27,709.89,0.25856059]
[1737033358177,0.28118717,711.27,709.9,0.25851909]
[1737033358380,0.28118717,711.27,709.91,0.25851909]
[1737033358678,0.28118717,711.27,709.92,0.25851909]
[1737033358877,0.28118717,711.27,709.93,0.25851909]
[1737033359077,0.28118717,711.27,709.94,0.25851909]
[1737033359276,0.28118717,711.27,709.95,0.25851909]
[1737033359473,0.28118717,711.27,709.96,0.25851909]
[1737033359680,0.28118717,711.27,709.97,0.25851909]
[1737033359878,0.28118717,711.27,709.98,0.25851909]
[1737033360070,0.28118717,711.27,709.99,0.25851909]